[Event "FIDE World Rapid Chess Championship 2021"]
[White "Aditya, Mittal"]
[Black "Tang, Andrew"]
[WhiteFideId "35042025"]
[BlackFideId "2059630"]
[WhiteElo "1488"]
[BlackElo "2427"]
[Result "1/2-1/2"]
[Round "12"]
[TimeControl "900+10"]
[Date "2021.12.28"]
[WhiteClock "0:00:44"]
[BlackClock "0:00:26"]

1. d4 {[%clk 0:15:28]}  d5 {[%clk 0:15:19]} 2. c4 {[%clk 0:15:28]}  e6 {[%clk 0:15:19]} 3. Nc3 {[%clk 0:15:28]}  Nf6 {[%clk 0:15:19]} 4. cxd5 {[%clk 0:15:28]}  exd5 {[%clk 0:15:19]} 5. Bg5 {[%clk 0:15:28]}  Be7 {[%clk 0:15:19]} 6. e3 {[%clk 0:15:28]}  c6 {[%clk 0:15:19]} 7. Bd3 {[%clk 0:15:28]}  Nbd7 {[%clk 0:15:19]} 8. Qc2 {[%clk 0:15:28]}  Nf8 {[%clk 0:15:19]} 9. Nge2 {[%clk 0:14:16]}  Ne6 {[%clk 0:16:48]} 10. Bh4 {[%clk 0:14:16]}  g6 {[%clk 0:16:48]} 11. f3 {[%clk 0:14:16]}  O-O {[%clk 0:16:48]} 12. O-O {[%clk 0:14:16]}  b5 {[%clk 0:16:48]} 13. Bf2 {[%clk 0:14:16]}  Bb7 {[%clk 0:16:48]} 14. Nf4 {[%clk 0:14:16]}  Nxf4 {[%clk 0:16:48]} 15. exf4 {[%clk 0:14:16]}  Bd6 {[%clk 0:15:11]} 16. f5 {[%clk 0:14:03]}  Nh5 {[%clk 0:15:11]} 17. Ne2 {[%clk 0:14:03]}  Qf6 {[%clk 0:13:54]} 18. g4 {[%clk 0:12:58]}  Nf4 {[%clk 0:13:54]} 19. Nxf4 {[%clk 0:12:58]}  Bxf4 {[%clk 0:13:54]} 20. Kg2 {[%clk 0:12:58]}  Rae8 {[%clk 0:13:54]} 21. Rae1 {[%clk 0:12:58]}  Bc8 {[%clk 0:13:54]} 22. h4 {[%clk 0:12:41]}  Bb8 {[%clk 0:13:44]} 23. Rh1 {[%clk 0:09:27]}  Bd7 {[%clk 0:11:38]} 24. Rxe8 {[%clk 0:08:32]}  Rxe8 {[%clk 0:10:28]} 25. h5 {[%clk 0:08:32]}  gxf5 {[%clk 0:10:29]} 26. Bxf5 {[%clk 0:04:50]}  Bxf5 {[%clk 0:10:29]} 27. Qxf5 {[%clk 0:04:50]}  Qxf5 {[%clk 0:10:29]} 28. gxf5 {[%clk 0:04:50]}  Bf4 {[%clk 0:09:48]} 29. Bg3 {[%clk 0:05:03]}  Bg5 {[%clk 0:09:48]} 30. f4 {[%clk 0:03:28]}  Bf6 {[%clk 0:06:54]} 31. Rc1 {[%clk 0:03:28]}  Rc8 {[%clk 0:06:54]} 32. Bf2 {[%clk 0:03:28]}  Kf8 {[%clk 0:06:54]} 33. Re1 {[%clk 0:03:28]}  a5 {[%clk 0:06:52]} 34. Kf3 {[%clk 0:02:36]}  a4 {[%clk 0:06:52]} 35. Re2 {[%clk 0:02:36]}  b4 {[%clk 0:06:52]} 36. h6 {[%clk 0:02:26]}  Rb8 {[%clk 0:04:07]} 37. b3 {[%clk 0:02:26]}  axb3 {[%clk 0:04:02]} 38. axb3 {[%clk 0:02:26]}  Ra8 {[%clk 0:04:02]} 39. Rc2 {[%clk 0:02:26]}  Ra6 {[%clk 0:04:02]} 40. Be1 {[%clk 0:02:26]}  Bxd4 {[%clk 0:04:15]} 41. Bxb4+ {[%clk 0:01:42]}  Ke8 {[%clk 0:04:15]} 42. Bd6 {[%clk 0:01:42]}  Rb6 {[%clk 0:02:56]} 43. Kg4 {[%clk 0:01:23]}  Rxb3 {[%clk 0:02:56]} 44. Be5 {[%clk 0:01:23]}  c5 {[%clk 0:02:56]} 45. Kg5 {[%clk 0:01:23]}  Rb6 {[%clk 0:02:56]} 46. Bxd4 {[%clk 0:01:01]}  cxd4 {[%clk 0:00:16]} 47. Rd2 {[%clk 0:01:01]}  f6+ {[%clk 0:00:16]} 48. Kg4 {[%clk 0:01:01]}  Rb4 {[%clk 0:00:16]} 49. Rd3 {[%clk 0:01:01]}  Kd7 {[%clk 0:00:16]} 50. Kf3 {[%clk 0:01:01]}  Rc4 {[%clk 0:00:16]} 51. Ke2 {[%clk 0:01:01]}  Rc2+ {[%clk 0:00:16]} 52. Kd1 {[%clk 0:01:01]}  Rh2 {[%clk 0:00:16]} 53. Rxd4 {[%clk 0:01:01]}  Kc6 {[%clk 0:00:16]} 54. Ra4 {[%clk 0:01:01]}  Rxh6 {[%clk 0:00:16]} 55. Kd2 {[%clk 0:01:01]}  Kb5 {[%clk 0:00:52]} 56. Ra8 {[%clk 0:00:26]}  Kc4 {[%clk 0:00:52]} 57. Ra4+ {[%clk 0:00:26]}  Kc5 {[%clk 0:00:52]} 58. Ra6 {[%clk 0:00:26]}  Kb5 {[%clk 0:00:52]} 59. Rd6 {[%clk 0:00:26]}  Kc4 {[%clk 0:00:52]} 60. Ke3 {[%clk 0:00:26]}  Rh3+ {[%clk 0:00:52]} 61. Kd2 {[%clk 0:00:26]}  Kd4 {[%clk 0:00:52]} 62. Rxf6 {[%clk 0:00:26]}  Rh2+ {[%clk 0:00:52]} 63. Ke1 {[%clk 0:00:26]}  Ke4 {[%clk 0:00:52]} 64. Re6+ {[%clk 0:00:26]}  Kxf4 {[%clk 0:00:52]} 65. f6 {[%clk 0:00:26]}  Rh5 {[%clk 0:00:26]} 66. Re2 {[%clk 0:00:44]}  Rh1+ {[%clk 0:00:26]} 67. Kd2 {[%clk 0:00:44]}  Rf1 {[%clk 0:00:26]} 68. Re1 {[%clk 0:00:44]}  Rf2+ {[%clk 0:00:26]} 69. Re2 {[%clk 0:00:44]}  Rf3 {[%clk 0:00:26]} 70. Re3 {[%clk 0:00:44]}  Rf2+ {[%clk 0:00:26]} 71. Re2 {[%clk 0:00:44]} 1/2-1/2


[Site "http://www.Chess.com"]

[Event "FIDE World Rapid Chess Championship 2021"]
[White "Sadzikowski, Daniel"]
[Black "Kolosowski, Mateusz"]
[WhiteFideId "1132253"]
[BlackFideId "1129708"]
[WhiteElo "2414"]
[BlackElo "2371"]
[Result "0-1"]
[Round "12"]
[TimeControl "900+10"]
[Date "2021.12.28"]
[WhiteClock "0:00:29"]
[BlackClock "0:01:24"]

1. e4 {[%clk 0:15:27]}  e5 {[%clk 0:15:28]} 2. Nf3 {[%clk 0:15:27]}  Nc6 {[%clk 0:15:28]} 3. Bb5 {[%clk 0:15:27]}  Nge7 {[%clk 0:15:28]} 4. O-O {[%clk 0:15:27]}  g6 {[%clk 0:15:28]} 5. c3 {[%clk 0:15:27]}  a6 {[%clk 0:15:28]} 6. Ba4 {[%clk 0:15:27]}  Bg7 {[%clk 0:15:28]} 7. d4 {[%clk 0:15:27]}  exd4 {[%clk 0:15:28]} 8. cxd4 {[%clk 0:15:27]}  b5 {[%clk 0:15:28]} 9. Bb3 {[%clk 0:14:49]}  O-O {[%clk 0:16:36]} 10. d5 {[%clk 0:14:49]}  Na5 {[%clk 0:16:36]} 11. Bd2 {[%clk 0:14:49]}  Nxb3 {[%clk 0:16:36]} 12. Qxb3 {[%clk 0:14:49]}  c5 {[%clk 0:16:36]} 13. dxc6 {[%clk 0:14:49]}  Nxc6 {[%clk 0:16:36]} 14. Bc3 {[%clk 0:14:49]}  Bh6 {[%clk 0:15:38]} 15. Bd2 {[%clk 0:14:27]}  Bg7 {[%clk 0:15:38]} 16. Nc3 {[%clk 0:14:27]}  d6 {[%clk 0:14:20]} 17. Nd5 {[%clk 0:12:40]}  Be6 {[%clk 0:11:10]} 18. Rad1 {[%clk 0:12:44]}  Na5 {[%clk 0:07:46]} 19. Qb4 {[%clk 0:07:35]}  Bxd5 {[%clk 0:06:52]} 20. exd5 {[%clk 0:04:49]}  Nc4 {[%clk 0:06:52]} 21. Bc3 {[%clk 0:04:49]}  Bxc3 {[%clk 0:06:52]} 22. Qxc3 {[%clk 0:04:49]}  Rc8 {[%clk 0:06:52]} 23. Nd4 {[%clk 0:05:15]}  Qf6 {[%clk 0:03:26]} 24. b3 {[%clk 0:05:15]}  Ne5 {[%clk 0:03:26]} 25. Qa5 {[%clk 0:05:15]}  Qf4 {[%clk 0:03:26]} 26. Qxa6 {[%clk 0:05:15]}  Ra8 {[%clk 0:03:25]} 27. Qxb5 {[%clk 0:03:03]}  Rxa2 {[%clk 0:03:25]} 28. h3 {[%clk 0:03:03]}  Rb2 {[%clk 0:03:25]} 29. Nc6 {[%clk 0:03:03]}  Ra8 {[%clk 0:03:25]} 30. Rd4 {[%clk 0:02:42]}  Qg5 {[%clk 0:02:29]} 31. Kh1 {[%clk 0:02:42]}  Kg7 {[%clk 0:02:29]} 32. Nxe5 {[%clk 0:01:07]}  Qxe5 {[%clk 0:01:23]} 33. Qd3 {[%clk 0:01:07]}  Rxb3 {[%clk 0:01:23]} 34. Qxb3 {[%clk 0:01:07]}  Qxd4 {[%clk 0:01:23]} 35. Qf3 {[%clk 0:01:07]}  Ra2 {[%clk 0:01:17]} 36. Kg1 {[%clk 0:00:20]}  Rd2 {[%clk 0:01:17]} 37. Rb1 {[%clk 0:00:20]}  Qxd5 {[%clk 0:01:17]} 38. Qxd5 {[%clk 0:00:20]}  Rxd5 {[%clk 0:01:17]} 39. h4 {[%clk 0:00:20]}  Kf6 {[%clk 0:01:17]} 40. g3 {[%clk 0:00:20]}  Re5 {[%clk 0:01:17]} 41. Kg2 {[%clk 0:00:20]}  h6 {[%clk 0:01:17]} 42. Kf3 {[%clk 0:00:20]}  g5 {[%clk 0:01:17]} 43. hxg5+ {[%clk 0:00:20]}  hxg5 {[%clk 0:01:17]} 44. Rb6 {[%clk 0:00:20]}  Ke6 {[%clk 0:01:17]} 45. Ra6 {[%clk 0:00:20]}  f5 {[%clk 0:01:17]} 46. Ra8 {[%clk 0:00:20]}  Rb5 {[%clk 0:00:47]} 47. Re8+ {[%clk 0:00:54]}  Kf7 {[%clk 0:00:47]} 48. Rd8 {[%clk 0:00:54]}  Rb3+ {[%clk 0:00:47]} 49. Ke2 {[%clk 0:00:54]}  Ke7 {[%clk 0:00:47]} 50. Rg8 {[%clk 0:00:54]}  g4 {[%clk 0:00:47]} 51. Rg6 {[%clk 0:00:54]}  Rf3 {[%clk 0:00:47]} 52. Rh6 {[%clk 0:00:54]}  Kd7 {[%clk 0:00:47]} 53. Rh1 {[%clk 0:00:54]}  Ke6 {[%clk 0:00:47]} 54. Ra1 {[%clk 0:00:54]}  Ke5 {[%clk 0:00:47]} 55. Ra5+ {[%clk 0:00:54]}  d5 {[%clk 0:00:47]} 56. Ra8 {[%clk 0:00:54]}  Rb3 {[%clk 0:00:47]} 57. Ra4 {[%clk 0:00:54]}  Rb2+ {[%clk 0:00:47]} 58. Ke1 {[%clk 0:00:54]}  d4 {[%clk 0:00:47]} 59. Ra8 {[%clk 0:00:12]}  Ke4 {[%clk 0:01:46]} 60. Rf8 {[%clk 0:00:12]}  Kd3 {[%clk 0:01:46]} 61. Kf1 {[%clk 0:00:12]}  Rb1+ {[%clk 0:01:46]} 62. Kg2 {[%clk 0:00:12]}  Rb5 {[%clk 0:01:46]} 63. Rd8 {[%clk 0:00:12]}  Re5 {[%clk 0:01:46]} 64. Kf1 {[%clk 0:00:12]}  Kc3 {[%clk 0:01:46]} 65. Rc8+ {[%clk 0:00:12]}  Kd2 {[%clk 0:01:46]} 66. Ra8 {[%clk 0:00:12]}  d3 {[%clk 0:01:46]} 67. Rc8 {[%clk 0:00:12]}  Kd1 {[%clk 0:01:24]} 68. f3 {[%clk 0:00:29]}  d2 {[%clk 0:01:24]} 69. Kf2 {[%clk 0:00:29]}  Re2+ {[%clk 0:01:24]} 70. Kf1 {[%clk 0:00:29]}  Re3 {[%clk 0:01:24]} 71. fxg4 {[%clk 0:00:29]}  Rf3+ {[%clk 0:01:24]} 72. Kg2 {[%clk 0:00:29]}  fxg4 {[%clk 0:01:24]} 0-1


[Site "http://www.Chess.com"]

[Event "FIDE World Rapid Chess Championship 2021"]
[White "Kuzmicz, Krystian"]
[Black "Peng, Li Min"]
[WhiteFideId "1119125"]
[BlackFideId "14112620"]
[WhiteElo "2314"]
[BlackElo "2411"]
[Result "1-0"]
[Round "12"]
[TimeControl "900+10"]
[Date "2021.12.28"]
[WhiteClock "0:01:03"]
[BlackClock "0:00:19"]

1. e4 {[%clk 0:15:08]}  c5 {[%clk 0:15:00]} 2. d3 {[%clk 0:15:17]}  Nc6 {[%clk 0:15:00]} 3. g3 {[%clk 0:15:17]}  g6 {[%clk 0:15:00]} 4. Bg2 {[%clk 0:15:17]}  Bg7 {[%clk 0:15:00]} 5. f4 {[%clk 0:15:17]}  e6 {[%clk 0:15:00]} 6. Nf3 {[%clk 0:15:17]}  Nge7 {[%clk 0:15:00]} 7. O-O {[%clk 0:15:17]}  d6 {[%clk 0:15:00]} 8. c3 {[%clk 0:15:17]}  O-O {[%clk 0:15:00]} 9. Be3 {[%clk 0:15:17]}  b6 {[%clk 0:15:00]} 10. Bf2 {[%clk 0:15:17]}  Qd7 {[%clk 0:15:30]} 11. Na3 {[%clk 0:16:30]}  Bb7 {[%clk 0:15:30]} 12. Nc2 {[%clk 0:16:30]}  Rac8 {[%clk 0:15:30]} 13. Re1 {[%clk 0:16:30]}  Rfe8 {[%clk 0:15:30]} 14. Qd2 {[%clk 0:16:30]}  h6 {[%clk 0:15:30]} 15. Rad1 {[%clk 0:16:30]}  f5 {[%clk 0:15:30]} 16. exf5 {[%clk 0:16:30]}  gxf5 {[%clk 0:15:30]} 17. d4 {[%clk 0:16:30]}  c4 {[%clk 0:15:30]} 18. Ne3 {[%clk 0:16:40]}  Nd8 {[%clk 0:14:10]} 19. Qe2 {[%clk 0:16:40]}  Nf7 {[%clk 0:14:07]} 20. Nd2 {[%clk 0:14:43]}  Bxg2 {[%clk 0:12:45]} 21. Nxg2 {[%clk 0:14:43]}  Nd5 {[%clk 0:12:53]} 22. Nxc4 {[%clk 0:11:11]}  Nf6 {[%clk 0:12:53]} 23. Nge3 {[%clk 0:11:11]}  b5 {[%clk 0:12:53]} 24. Nd2 {[%clk 0:11:11]}  d5 {[%clk 0:12:53]} 25. Nf3 {[%clk 0:10:16]}  Nd6 {[%clk 0:07:47]} 26. Ne5 {[%clk 0:10:16]}  Qb7 {[%clk 0:07:47]} 27. g4 {[%clk 0:10:16]}  fxg4 {[%clk 0:07:47]} 28. N3xg4 {[%clk 0:07:10]}  Nfe4 {[%clk 0:08:07]} 29. Kh1 {[%clk 0:07:10]}  Rf8 {[%clk 0:08:07]} 30. Rg1 {[%clk 0:07:10]}  Kh7 {[%clk 0:08:07]} 31. Rdf1 {[%clk 0:07:10]}  Rxf4 {[%clk 0:08:04]} 32. Be3 {[%clk 0:05:33]}  Rxf1 {[%clk 0:08:04]} 33. Qxf1 {[%clk 0:05:33]}  Nf5 {[%clk 0:08:04]} 34. Qg2 {[%clk 0:04:25]}  Rg8 {[%clk 0:01:58]} 35. Nf6+ {[%clk 0:03:57]}  Nxf6 {[%clk 0:01:58]} 36. Qg6+ {[%clk 0:03:57]}  Kh8 {[%clk 0:01:58]} 37. Nf7+ {[%clk 0:03:57]}  Qxf7 {[%clk 0:01:58]} 38. Qxf7 {[%clk 0:03:57]}  Ne4 {[%clk 0:01:58]} 39. Re1 {[%clk 0:03:57]}  Bf6 {[%clk 0:01:19]} 40. Bg1 {[%clk 0:02:31]}  Bh4 {[%clk 0:00:00]} 41. Rf1 {[%clk 0:02:31]}  Ng5 {[%clk 0:00:00]} 42. Qf6+ {[%clk 0:02:31]}  Kh7 {[%clk 0:00:00]} 43. Rxf5 {[%clk 0:02:31]}  Nh3 {[%clk 0:00:00]} 44. Qf7+ {[%clk 0:02:31]}  Rg7 {[%clk 0:00:00]} 45. Qxg7+ {[%clk 0:02:31]}  Kxg7 {[%clk 0:00:00]} 46. Rh5 {[%clk 0:02:31]}  Nxg1 {[%clk 0:00:00]} 47. Kxg1 {[%clk 0:02:31]}  Bg5 {[%clk 0:00:00]} 48. Rh3 {[%clk 0:02:31]}  Bc1 {[%clk 0:00:00]} 49. b3 {[%clk 0:01:03]}  Bb2 {[%clk 0:00:19]} 50. Rd3 {[%clk 0:01:03]}  Kf6 {[%clk 0:00:19]} 51. Kf2 {[%clk 0:01:03]}  a5 {[%clk 0:00:19]} 52. Ke2 {[%clk 0:01:03]}  b4 {[%clk 0:00:19]} 53. cxb4 {[%clk 0:01:03]}  axb4 {[%clk 0:00:19]} 54. Rf3+ {[%clk 0:01:03]}  Kg5 {[%clk 0:00:19]} 55. Kd3 {[%clk 0:01:03]}  h5 {[%clk 0:00:19]} 56. Re3 {[%clk 0:01:03]}  Kf5 {[%clk 0:00:19]} 57. Re5+ {[%clk 0:01:03]}  Kg4 {[%clk 0:00:19]} 58. Rxe6 {[%clk 0:01:03]}  Bc1 {[%clk 0:00:19]} 59. Re5 {[%clk 0:01:03]}  Bf4 {[%clk 0:00:19]} 60. h3+ {[%clk 0:01:03]} 1-0


[Site "http://www.Chess.com"]

[Event "FIDE World Rapid Chess Championship 2021"]
[White "Lubczynski, Rafal"]
[Black "Baum, Jonasz"]
[WhiteFideId "1126091"]
[BlackFideId "1195360"]
[WhiteElo "2289"]
[BlackElo "2343"]
[Result "1/2-1/2"]
[Round "12"]
[TimeControl "900+10"]
[Date "2021.12.28"]
[WhiteClock "0:00:19"]
[BlackClock "0:00:10"]

1. Nf3 {[%clk 0:15:28]}  d5 {[%clk 0:15:27]} 2. c4 {[%clk 0:15:28]}  d4 {[%clk 0:15:27]} 3. e3 {[%clk 0:15:28]}  Nc6 {[%clk 0:15:27]} 4. exd4 {[%clk 0:15:28]}  Nxd4 {[%clk 0:15:27]} 5. Nxd4 {[%clk 0:15:28]}  Qxd4 {[%clk 0:15:27]} 6. Nc3 {[%clk 0:15:28]}  Nf6 {[%clk 0:13:45]} 7. d3 {[%clk 0:15:16]}  Bg4 {[%clk 0:13:42]} 8. Qb3 {[%clk 0:12:40]}  Qb6 {[%clk 0:11:05]} 9. Be3 {[%clk 0:12:34]}  Qxb3 {[%clk 0:11:05]} 10. axb3 {[%clk 0:12:34]}  a6 {[%clk 0:11:05]} 11. f3 {[%clk 0:12:23]}  Bd7 {[%clk 0:09:09]} 12. d4 {[%clk 0:12:23]}  e6 {[%clk 0:09:55]} 13. Kf2 {[%clk 0:09:02]}  h5 {[%clk 0:09:55]} 14. Ne4 {[%clk 0:08:27]}  Bc6 {[%clk 0:08:01]} 15. Ng5 {[%clk 0:06:52]}  Bd6 {[%clk 0:07:00]} 16. h4 {[%clk 0:06:52]}  Nh7 {[%clk 0:06:09]} 17. Ne4 {[%clk 0:05:10]}  Bxe4 {[%clk 0:03:17]} 18. fxe4 {[%clk 0:05:10]}  Nf6 {[%clk 0:03:17]} 19. e5 {[%clk 0:05:10]}  Ng4+ {[%clk 0:03:17]} 20. Kf3 {[%clk 0:05:10]}  Be7 {[%clk 0:04:12]} 21. c5 {[%clk 0:02:30]}  f6 {[%clk 0:04:12]} 22. exf6 {[%clk 0:02:30]}  Bxf6 {[%clk 0:02:49]} 23. Bc4 {[%clk 0:01:51]}  e5 {[%clk 0:02:49]} 24. d5 {[%clk 0:01:51]}  e4+ {[%clk 0:02:49]} 25. Kxe4 {[%clk 0:01:51]}  O-O-O {[%clk 0:01:15]} 26. Bd4 {[%clk 0:01:10]}  Rhe8+ {[%clk 0:01:15]} 27. Kd3 {[%clk 0:01:10]}  Bxd4 {[%clk 0:01:15]} 28. Kxd4 {[%clk 0:01:10]}  Ne3 {[%clk 0:01:15]} 29. Rac1 {[%clk 0:01:36]}  Nxd5 {[%clk 0:00:17]} 30. Bxd5 {[%clk 0:01:36]}  c6 {[%clk 0:00:17]} 31. Rce1 {[%clk 0:01:36]}  Rxd5+ {[%clk 0:00:17]} 32. Kc4 {[%clk 0:01:36]}  Red8 {[%clk 0:00:17]} 33. Rhf1 {[%clk 0:01:36]}  Rd4+ {[%clk 0:00:10]} 34. Kc3 {[%clk 0:00:19]}  Rd3+ {[%clk 0:00:10]} 35. Kc2 {[%clk 0:00:19]}  Rd2+ {[%clk 0:00:10]} 36. Kb1 {[%clk 0:00:19]}  Rxg2 {[%clk 0:00:10]} 37. Re7 {[%clk 0:00:19]}  Rd7 {[%clk 0:00:10]} 38. Rf8+ {[%clk 0:00:19]}  Kc7 {[%clk 0:00:10]} 39. Ree8 {[%clk 0:00:19]}  Rdd2 {[%clk 0:00:10]} 40. Re7+ {[%clk 0:00:19]}  Rd7 {[%clk 0:00:10]} 41. Ree8 {[%clk 0:00:19]}  Rdd2 {[%clk 0:00:10]} 42. Re7+ {[%clk 0:00:19]}  Rd7 {[%clk 0:00:10]} 1/2-1/2


[Site "http://www.Chess.com"]

[Event "FIDE World Rapid Chess Championship 2021"]
[White "Tologontegin, Semetey"]
[Black "Blanco Acevedo, Cristobal Jose"]
[WhiteFideId "13800574"]
[BlackFideId "3900525"]
[WhiteElo "2300"]
[BlackElo "2289"]
[Result "1-0"]
[Round "12"]
[TimeControl "900+10"]
[Date "2021.12.28"]
[WhiteClock "0:00:01"]
[BlackClock "0:00:26"]

1. d4 {[%clk 0:15:00]}  Nf6 {[%clk 0:15:00]} 2. Nc3 {[%clk 0:15:00]}  d5 {[%clk 0:15:00]} 3. Bf4 {[%clk 0:15:00]}  c6 {[%clk 0:15:00]} 4. e3 {[%clk 0:15:00]}  Nbd7 {[%clk 0:15:00]} 5. h3 {[%clk 0:15:00]}  g6 {[%clk 0:15:00]} 6. Nf3 {[%clk 0:15:00]}  Bg7 {[%clk 0:15:00]} 7. Bd3 {[%clk 0:15:00]}  O-O {[%clk 0:14:49]} 8. O-O {[%clk 0:15:25]}  b5 {[%clk 0:14:49]} 9. a3 {[%clk 0:15:25]}  Nb6 {[%clk 0:14:49]} 10. e4 {[%clk 0:15:25]}  Nc4 {[%clk 0:14:49]} 11. Rb1 {[%clk 0:15:25]}  a6 {[%clk 0:13:58]} 12. Qc1 {[%clk 0:15:16]}  dxe4 {[%clk 0:12:19]} 13. Nxe4 {[%clk 0:12:21]}  Nd6 {[%clk 0:12:19]} 14. Ng3 {[%clk 0:12:21]}  Re8 {[%clk 0:09:05]} 15. Bh6 {[%clk 0:11:50]}  Bh8 {[%clk 0:09:05]} 16. Qg5 {[%clk 0:11:44]}  Nd5 {[%clk 0:08:12]} 17. Qh4 {[%clk 0:09:01]}  e6 {[%clk 0:07:47]} 18. Bg5 {[%clk 0:09:01]}  f6 {[%clk 0:07:47]} 19. Bd2 {[%clk 0:09:01]}  Nf5 {[%clk 0:07:47]} 20. Nxf5 {[%clk 0:09:01]}  exf5 {[%clk 0:07:47]} 21. b3 {[%clk 0:07:15]}  Be6 {[%clk 0:06:46]} 22. c4 {[%clk 0:03:44]}  Nb6 {[%clk 0:06:46]} 23. Ba5 {[%clk 0:03:44]}  Qb8 {[%clk 0:06:46]} 24. Rfe1 {[%clk 0:03:44]}  Nd7 {[%clk 0:06:00]} 25. Qh6 {[%clk 0:03:32]}  Bg7 {[%clk 0:04:42]} 26. Qd2 {[%clk 0:01:46]}  Bf8 {[%clk 0:04:42]} 27. Bb4 {[%clk 0:01:46]}  Bg7 {[%clk 0:04:42]} 28. d5 {[%clk 0:01:46]}  cxd5 {[%clk 0:04:42]} 29. cxd5 {[%clk 0:01:46]}  Bf7 {[%clk 0:02:39]} 30. Be7 {[%clk 0:01:45]}  Qb6 {[%clk 0:02:39]} 31. d6 {[%clk 0:01:45]}  Rac8 {[%clk 0:01:07]} 32. b4 {[%clk 0:01:19]}  Bf8 {[%clk 0:01:07]} 33. Bc2 {[%clk 0:01:19]}  Qc6 {[%clk 0:01:07]} 34. Bb3 {[%clk 0:01:19]}  Bxb3 {[%clk 0:01:07]} 35. Rxb3 {[%clk 0:01:19]}  Bxe7 {[%clk 0:00:22]} 36. dxe7 {[%clk 0:01:27]}  Nb6 {[%clk 0:00:22]} 37. Rd3 {[%clk 0:01:27]}  Nc4 {[%clk 0:00:22]} 38. Qf4 {[%clk 0:01:27]}  Qc7 {[%clk 0:00:22]} 39. Qd4 {[%clk 0:01:27]}  Kf7 {[%clk 0:00:22]} 40. Qd5+ {[%clk 0:01:27]}  Kg7 {[%clk 0:00:22]} 41. Nd4 {[%clk 0:01:27]}  Kh6 {[%clk 0:00:22]} 42. Ne6 {[%clk 0:01:27]}  Qxe7 {[%clk 0:00:22]} 43. Rd4 {[%clk 0:01:27]}  g5 {[%clk 0:00:22]} 44. Qxf5 {[%clk 0:01:27]}  Rc6 {[%clk 0:00:22]} 45. Rh4+ {[%clk 0:00:01]}  gxh4 {[%clk 0:00:26]} 46. Qf4+ {[%clk 0:00:01]}  Kh5 {[%clk 0:00:26]} 47. Qg4+ {[%clk 0:00:01]}  Kh6 {[%clk 0:00:26]} 48. Qxh4+ {[%clk 0:00:01]}  Kg6 {[%clk 0:00:26]} 49. Qg4+ {[%clk 0:00:01]}  Kh6 {[%clk 0:00:26]} 50. Qf4+ {[%clk 0:00:01]}  Kg6 {[%clk 0:00:26]} 51. Qe4+ {[%clk 0:00:01]}  Kh6 {[%clk 0:00:26]} 52. Qxc6 {[%clk 0:00:01]}  Ne5 {[%clk 0:00:26]} 53. Rxe5 {[%clk 0:00:01]}  fxe5 {[%clk 0:00:26]} 54. Nc7+ {[%clk 0:00:01]} 1-0


[Site "http://www.Chess.com"]